{"text_format":"1","workbook":"xlsx","n_sheets":3,"sheets":["Réglement","Compteur de cordée (Séance)","Compteur de cordée (Bilan)"],"not_rendered":{"charts":0,"images":0,"macros":1,"external_links":0,"defined_names":0,"comments":0,"pivot_tables":0},"unopened":[],"bounds":{"document_bytes":16777216,"sheet_cells":100000,"rows_first":2000,"rows_last":500,"rows_between":2000,"halvings":0,"cell_chars":16384,"cell_head_chars":4096},"cells_cut":0,"cells_raw":0,"read":"whole","date_system":"1900"}

{"sheet":"Réglement","index":0,"n_rows":13,"n_cols":6,"rows_kept":13,"cut":false,"hidden":false,"merged":[[1,1,1,2]]}
[]
[null,"RÈGLEMENT DU COMPTEUR DE CORDÉE",null,null,"CHAUSSONS","Mètres parcourus"]
[null,"Article 1","Les cordées sont établies par l'enseignant",null,"BLANCS",0]
[null,"Article 2","Les chaussons se gagnent collectivement",null,"JAUNES",40]
[null,"Article 3","Le compteur se déroule sur l'ensemble du cycle",null,"ORANGES",80]
[null,"Article 4","Le comptage des points se fait tel que : 1 mètre grimpé = 1 point",null,"VERTS",100]
[null,"Article 5","Des bonus de points peuvent être accordés en fonction de la difficulté de la voie ou des modalités de grimpe utilisées",null,"BLEUS",130]
[null,"Article 6","Un élève ne peut grimper qu'une fois la même voie par leçon sauf article 7",null,"ROUGES",160]
[null,"Article 7","Une voie peut être grimpée une deuxième fois à condition de l'enchainer immédiatement sans se désencorder",null,"NOIRS",200]
[null,"Article 8","Les voies peuvent être grimpées plusieurs fois dans le cycle et les points ainsi gagnés s'additionnent",null,"D'ARGENT",250]
[null,"Article 9","Les voies doivent être grimpées avec corde molle. À défaut les points sont divisés par 2",null,"D'OR",300]
[null,"Article 10","Les règles de sécurité sont à respecter. En cas de non respect les points de la séance ne sont pas attribués",null,"DE DIAMANT",400]
[null,"Article 11","Un score personnel est affiché et permet de repérer les progrès de chacun des membres de la cordée",null,"DE PLATINE",500]

{"sheet":"Compteur de cordée (Séance)","index":1,"n_rows":34,"n_cols":32,"rows_kept":34,"cut":false,"hidden":false,"merged":[[1,0,1,1],[17,3,19,3],[23,3,25,3],[23,31,25,31],[20,3,22,3],[20,31,22,31],[30,3,33,3],[30,31,33,31],[0,17,0,21],[17,31,19,31],[26,31,29,31],[26,3,29,3],[2,31,4,31],[5,31,7,31],[8,31,10,31],[11,31,13,31],[14,31,16,31],[2,3,4,3],[5,3,7,3],[8,3,10,3],[11,3,13,3],[14,3,16,3]]}
[null,null,null,{"$f":"NOW()","v":"2018-05-10T16:33:38.640"}]
["Capitalisation",null,null,"Cordée","NOMS","Capital","V1","V2","V3","V4","V5","V6","V7","V8","V9","V10","V11","V12","V13","V14","V15","V16","V17","V18","V19","V20","V21","V22","V23","V24","Séance","Total cordée"]
[{"$f":"F3+B3","v":208},{"$f":"SUM(G3:AD3)","v":21},null,1,"Alexandre",187,7,null,null,null,null,null,null,null,null,7,null,null,null,null,null,null,null,null,null,null,null,null,null,7,{"$f":"SUM(G3:AD3)","v":21},{"$f":"SUM(F3:AD5)","v":359}]
[{"$f":"F4+B4","v":132},18,null,null,"Arthur",114,7,null,null,null,null,null,null,null,null,5,null,null,null,null,null,null,null,null,null,null,null,null,null,6,{"$f":"SUM(G4:AD4)","v":18}]
[19,4,null,null,"Téo",15,3,null,null,null,null,null,null,null,null,1,null,null,null,null,null,null,null,null,null,null,null,null,null,null,4]
[93,10,null,2,"Axelle",83,null,7,null,null,null,null,null,null,null,null,null,3,null,null,null,null,null,null,null,null,null,null,null,null,10,{"$f":"SUM(F6:AD8)","v":225}]
[54,9,null,null,"Chloé",45,null,7,null,null,null,null,null,null,null,null,null,2,null,null,null,null,null,null,null,null,null,null,null,null,9]
[78,10,null,null,"Raphael",68,null,7,null,null,null,null,null,null,null,null,null,3,null,null,null,null,null,null,null,null,null,null,null,null,10]
[257,21,null,3,"Lilou",236,null,null,null,null,null,null,null,null,null,null,null,null,null,null,null,7,null,7,7,null,null,null,null,null,21,{"$f":"SUM(F9:AD11)","v":578}]
[186,18,null,null,"Mathilde",168,null,null,null,null,null,null,null,null,null,null,null,null,null,null,null,5,null,7,6,null,null,null,null,null,18]
[135,12,null,null,"Louna",123,null,null,null,null,null,null,null,null,null,null,null,null,null,null,null,3,null,4,5,null,null,null,null,null,12]
[65,3,null,4,"Dorian",62,null,null,null,null,null,null,null,null,null,null,null,null,null,null,null,null,null,null,null,null,null,null,null,3,3,{"$f":"SUM(F12:AD14)","v":249}]
[83,5,null,null,"Armand",78,null,null,null,null,null,null,null,null,null,null,null,null,null,null,null,null,null,null,null,null,null,null,null,5,5]
[101,0,null,null,"Mathys",101,null,null,null,null,null,null,null,null,null,null,null,null,null,null,null,null,null,null,null,null,null,null,null,null,0]
[122,14,null,5,"Julie",108,7,7,null,null,null,null,null,null,null,null,null,null,null,null,null,null,null,null,null,null,null,null,null,null,14,{"$f":"SUM(F15:AD17)","v":306}]
[118,14,null,null,"Lesly",104,7,7,null,null,null,null,null,null,null,null,null,null,null,null,null,null,null,null,null,null,null,null,null,null,14]
[66,12,null,null,"Mathilda",54,5,7,null,null,null,null,null,null,null,null,null,null,null,null,null,null,null,null,null,null,null,null,null,null,12]
[161,21,null,6,"Léa",140,null,7,null,null,null,null,null,null,null,null,null,null,null,null,null,null,null,null,null,null,null,null,7,7,21,{"$f":"SUM(F18:AD20)","v":415}]
[137,16,null,null,"Mathéo",121,null,3,null,null,null,null,null,null,null,null,null,null,null,null,null,null,null,null,null,null,null,null,6,7,16]
[117,14,null,null,"Gwendoline",103,null,1,null,null,null,null,null,null,null,null,null,null,null,null,null,null,null,null,null,null,null,null,6,7,14]
[0,0,null,7,null,0,null,null,null,null,null,null,null,null,null,null,null,null,null,null,null,null,null,null,null,null,null,null,null,null,0,{"$f":"SUM(F21:AD23)","v":0}]
[0,0,null,null,null,0,null,null,null,null,null,null,null,null,null,null,null,null,null,null,null,null,null,null,null,null,null,null,null,null,0]
[0,0,null,null,null,0,null,null,null,null,null,null,null,null,null,null,null,null,null,null,null,null,null,null,null,null,null,null,null,null,0]
[0,0,null,8,null,0,null,null,null,null,null,null,null,null,null,null,null,null,null,null,null,null,null,null,null,null,null,null,null,null,0,{"$f":"SUM(F24:AD26)","v":0}]
[0,0,null,null,null,0,null,null,null,null,null,null,null,null,null,null,null,null,null,null,null,null,null,null,null,null,null,null,null,null,0]
[0,0,null,null,null,0,null,null,null,null,null,null,null,null,null,null,null,null,null,null,null,null,null,null,null,null,null,null,null,null,0]
[0,0,null,"Cordée de 4 n°1",null,0,null,null,null,null,null,null,null,null,null,null,null,null,null,null,null,null,null,null,null,null,null,null,null,null,0,{"$f":"SUM(F27:AD30)","v":0}]
[0,0,null,null,null,0,null,null,null,null,null,null,null,null,null,null,null,null,null,null,null,null,null,null,null,null,null,null,null,null,0]
[0,0,null,null,null,0,null,null,null,null,null,null,null,null,null,null,null,null,null,null,null,null,null,null,null,null,null,null,null,null,0]
[0,0,null,null,null,0,null,null,null,null,null,null,null,null,null,null,null,null,null,null,null,null,null,null,null,null,null,null,null,null,0]
[0,0,null,"Cordée de 4 n°2",null,0,null,null,null,null,null,null,null,null,null,null,null,null,null,null,null,null,null,null,null,null,null,null,null,null,0,{"$f":"SUM(F31:AD34)","v":0}]
[0,0,null,null,null,0,null,null,null,null,null,null,null,null,null,null,null,null,null,null,null,null,null,null,null,null,null,null,null,null,0]
[0,0,null,null,null,0,null,null,null,null,null,null,null,null,null,null,null,null,null,null,null,null,null,null,null,null,null,null,null,null,0]
[0,0,null,null,null,0,null,null,null,null,null,null,null,null,null,null,null,null,null,null,null,null,null,null,null,null,null,null,null,null,0]

{"sheet":"Compteur de cordée (Bilan)","index":2,"n_rows":34,"n_cols":82,"rows_kept":34,"cut":false,"hidden":false,"merged":[[1,58,1,81],[1,32,1,55],[8,2,10,2],[8,30,10,30],[0,15,0,19],[2,2,4,2],[2,30,4,30],[5,2,7,2],[5,30,7,30],[11,2,13,2],[11,30,13,30],[14,2,16,2],[14,30,16,30],[17,2,19,2],[17,30,19,30],[30,2,33,2],[30,30,33,30],[20,2,22,2],[20,30,22,30],[23,2,25,2],[23,30,25,30],[26,2,29,2],[26,30,29,30]]}
[null,null,{"$f":"NOW()","v":"2018-05-10T16:33:38.640"}]
[null,null,"Cordée","NOMS","V1","V2","V3","V4","V5","V6","V7","V8","V9","V10","V11","V12","V13","V14","V15","V16","V17","V18","V19","V20","V21","V22","V23","V24","Cpt.","Total","Total cordée",null,"Résultats du jour",null,null,null,null,null,null,null,null,null,null,null,null,null,null,null,null,null,null,null,null,null,null,null,null,null,"Addition du bilan"]
[null,null,1,{"$f":"'Compteur de cordée (Séance)'!E3","v":"Alexandre"},21,14,7,0,0,0,0,0,12,21,0,null,0,7,14,7,20,7,5,0,6,0,11,35,{"$f":"AD3","v":187},{"$f":"SUM(E3:AB3)","v":187},{"$f":"SUM(AD3:AD5)","v":316},null,7,null,null,null,null,null,null,null,null,7,null,null,null,null,null,null,null,null,null,null,null,null,null,7,null,null,{"$f":"AG3+E3","v":28},{"$f":"AH3+F3","v":14},7,0,0,0,0,0,12,28,0,0,0,7,14,7,20,7,5,0,6,0,11,42]
[null,null,null,{"$f":"'Compteur de cordée (Séance)'!E4","v":"Arthur"},7,32,7,0,0,0,0,0,21,12,0,0,6,7,0,0,5,0,2,0,0,0,2,13,114,{"$f":"SUM(E4:AB4)","v":114},null,null,7,null,null,null,null,null,null,null,null,5,null,null,null,null,null,null,null,null,null,null,null,null,null,6,null,null,{"$f":"AG4+E4","v":14},32,7,0,0,0,0,0,21,17,0,0,6,7,0,0,5,0,2,0,0,0,2,19]
[null,null,null,{"$f":"'Compteur de cordée (Séance)'!E5","v":"Téo"},6,2,1,0,0,0,0,0,2,1,0,0,0,0,null,null,1,0,2,0,0,0,0,0,15,15,null,null,3,null,null,null,null,null,null,null,null,1,null,null,null,null,null,null,null,null,null,null,null,null,null,null,null,null,9,2,1,0,0,0,0,0,2,2,0,0,0,0,0,0,1,0,2,0,0,0,0,0]
[null,null,2,{"$f":"'Compteur de cordée (Séance)'!E6","v":"Axelle"},12,17,0,5,0,0,0,0,null,7,0,null,0,3,0,9,21,7,0,0,0,0,0,2,83,83,{"$f":"SUM(AD6:AD8)","v":196},null,null,7,null,null,null,null,null,null,null,null,null,3,null,null,null,null,null,null,null,null,null,null,null,null,null,null,12,24,0,5,0,0,0,0,0,7,0,3,0,3,0,9,21,7,0,0,0,0,0,2]
[null,null,null,{"$f":"'Compteur de cordée (Séance)'!E7","v":"Chloé"},10,7,0,0,0,0,0,0,3,0,0,2,0,2,0,14,null,0,0,0,0,0,0,7,45,45,null,null,null,7,null,null,null,null,null,null,null,null,null,2,null,null,null,null,null,null,null,null,null,null,null,null,null,null,10,14,0,0,0,0,0,0,3,0,0,4,0,2,0,14,0,0,0,0,0,0,0,7]
[null,null,null,{"$f":"'Compteur de cordée (Séance)'!E8","v":"Raphael"},2,7,0,4,0,0,0,0,12,0,0,3,0,9,7,17,0,0,0,0,0,0,0,7,68,68,null,null,null,7,null,null,null,null,null,null,null,null,null,3,null,null,null,null,null,null,null,null,null,null,null,null,null,null,2,14,0,4,0,0,0,0,12,0,0,6,0,9,7,17,0,0,0,0,0,0,0,7]
[null,null,3,{"$f":"'Compteur de cordée (Séance)'!E9","v":"Lilou"},31,12,0,0,0,5,7,0,22,35,7,17,7,5,7,27,0,7,7,11,22,0,7,0,236,236,{"$f":"SUM(AD9:AD11)","v":527},null,null,null,null,null,null,null,null,null,null,null,null,null,null,null,null,7,null,7,7,null,null,null,null,null,null,null,31,12,0,0,0,5,7,0,22,35,7,17,7,5,7,34,0,14,14,11,22,0,7,0]
[null,null,null,{"$f":"'Compteur de cordée (Séance)'!E10","v":"Mathilde"},11,26,0,0,0,0,0,5,1,41,0,0,0,0,7,19,14,11,6,0,6,0,0,21,168,168,null,null,null,null,null,null,null,null,null,null,null,null,null,null,null,null,null,5,null,7,6,null,null,null,null,null,null,null,11,26,0,0,0,0,0,5,1,41,0,0,0,0,7,24,14,18,12,0,6,0,0,21]
[null,null,null,{"$f":"'Compteur de cordée (Séance)'!E11","v":"Louna"},11,12,0,0,0,0,0,5,3,19,10,9,0,8,3,7,7,4,5,10,0,0,0,10,123,123,null,null,null,null,null,null,null,null,null,null,null,null,null,null,null,null,null,3,null,4,5,null,null,null,null,null,null,null,11,12,0,0,0,0,0,5,3,19,10,9,0,8,3,10,7,8,10,10,0,0,0,10]
[null,null,4,{"$f":"'Compteur de cordée (Séance)'!E12","v":"Dorian"},8,3,0,0,0,0,0,0,13,0,0,null,0,0,3,10,0,0,2,0,0,0,0,23,62,62,{"$f":"SUM(AD12:AD14)","v":241},null,null,null,null,null,null,null,null,null,null,null,null,null,null,null,null,null,null,null,null,null,null,null,null,null,null,null,8,3,0,0,0,0,0,0,13,0,0,0,0,0,3,10,0,0,2,0,0,0,0,23]
[null,null,null,{"$f":"'Compteur de cordée (Séance)'!E13","v":"Armand"},5,0,0,0,5,0,5,0,0,0,0,0,0,0,7,14,0,null,1,4,11,0,6,20,78,78,null,null,null,null,null,null,null,null,null,null,null,null,null,null,null,null,null,null,null,null,null,null,null,null,6,5,null,null,5,0,0,0,5,0,5,0,0,0,0,0,0,0,7,14,0,0,1,4,11,0,12,25]
[null,null,null,{"$f":"'Compteur de cordée (Séance)'!E14","v":"Mathys"},17,14,0,0,0,0,0,0,0,12,0,0,0,0,7,7,14,0,2,0,0,0,7,21,101,101,null,null,null,null,null,null,null,null,null,null,null,null,null,null,null,null,null,null,null,null,null,null,null,null,7,7,null,null,17,14,0,{"$f":"AJ14+H14","v":0},{"$f":"AK14+I14","v":0},{"$f":"AL14+J14","v":0},{"$f":"AM14+K14","v":0},{"$f":"AN14+L14","v":0},{"$f":"AO14+M14","v":0},{"$f":"AP14+N14","v":12},{"$f":"AQ14+O14","v":0},{"$f":"AR14+P14","v":0},{"$f":"AS14+Q14","v":0},{"$f":"AT14+R14","v":0},{"$f":"AU14+S14","v":7},{"$f":"AV14+T14","v":7},{"$f":"AW14+U14","v":14},{"$f":"AX14+V14","v":0},{"$f":"AY14+W14","v":2},{"$f":"AZ14+X14","v":0},{"$f":"BA14+Y14","v":0},{"$f":"BB14+Z14","v":0},{"$f":"BC14+AA14","v":14},{"$f":"BD14+AB14","v":28}]
[null,null,5,{"$f":"'Compteur de cordée (Séance)'!E15","v":"Julie"},28,21,0,0,0,0,0,0,4,5,0,4,4,0,0,7,0,0,0,0,0,0,0,35,108,108,{"$f":"SUM(AD15:AD17)","v":266},null,7,7,null,null,null,null,null,null,null,null,null,null,null,null,null,null,null,null,null,null,null,null,null,null,null,null,35,{"$f":"AH15+F15","v":28},{"$f":"AI15+G15","v":0},0,0,0,0,0,4,5,0,4,4,0,0,7,0,0,0,0,0,0,0,35]
[null,null,null,{"$f":"'Compteur de cordée (Séance)'!E16","v":"Lesly"},23,7,0,0,5,0,0,0,11,5,0,0,3,0,5,0,21,0,0,0,10,0,0,14,104,104,null,null,7,7,null,null,null,null,null,null,null,null,null,null,null,null,null,null,null,null,null,null,null,null,null,null,null,null,30,14,0,0,5,0,0,0,11,5,0,0,3,0,5,0,21,0,0,0,10,0,0,14]
[null,null,null,{"$f":"'Compteur de cordée (Séance)'!E17","v":"Mathilda"},5,7,0,0,0,0,0,0,1,null,0,4,2,0,0,7,7,0,0,0,0,0,0,21,54,54,null,null,5,7,null,null,null,null,null,null,null,null,null,null,null,null,null,null,null,null,null,null,null,null,null,null,null,null,10,14,0,0,0,0,0,0,1,0,0,4,2,0,0,7,7,0,0,0,0,0,0,21]
[null,null,6,{"$f":"'Compteur de cordée (Séance)'!E18","v":"Léa"},11,7,7,0,4,7,0,7,3,0,0,8,0,0,16,14,14,7,0,0,7,0,14,14,140,140,{"$f":"SUM(AD18:AD20)","v":364},null,null,7,null,null,null,null,null,null,null,null,null,null,null,null,null,null,null,null,null,null,null,null,7,7,null,null,11,14,7,0,4,7,0,7,3,0,0,8,0,0,16,14,14,7,0,0,7,0,21,21]
[null,null,null,{"$f":"'Compteur de cordée (Séance)'!E19","v":"Mathéo"},7,3,7,0,0,7,0,0,10,0,0,0,0,0,13,14,14,7,0,0,0,0,11,28,121,121,null,null,null,3,null,null,null,null,null,null,null,null,null,null,null,null,null,null,null,null,null,null,null,null,6,7,null,null,7,6,7,0,0,7,0,0,10,0,0,0,0,0,13,14,14,7,0,0,0,0,17,35]
[null,null,null,{"$f":"'Compteur de cordée (Séance)'!E20","v":"Gwendoline"},18,1,5,0,0,7,0,0,1,3,0,4,0,0,9,0,35,0,0,0,0,0,8,12,103,103,null,null,null,1,null,null,null,null,null,null,null,null,null,null,null,null,null,null,null,null,null,null,null,null,6,7,null,null,18,2,5,0,0,7,0,0,1,3,0,4,0,0,9,0,35,0,0,0,0,0,14,19]
[null,null,7,{"$f":"'Compteur de cordée (Séance)'!E21","v":0},0,0,0,0,0,0,0,0,0,0,0,0,0,0,0,0,0,0,0,0,0,0,0,0,0,0,{"$f":"SUM(AD21:AD23)","v":0},null,null,null,null,null,null,null,null,null,null,null,null,null,null,null,null,null,null,null,null,null,null,null,null,null,null,null,0,0,0,0,0,0,0,0,0,0,0,0,0,0,0,0,0,0,0,0,0,0,0,0]
[null,null,null,{"$f":"'Compteur de cordée (Séance)'!E22","v":0},0,0,0,0,0,0,0,0,0,0,0,0,0,0,0,0,0,0,0,0,0,0,0,0,0,0,null,null,null,null,null,null,null,null,null,null,null,null,null,null,null,null,null,null,null,null,null,null,null,null,null,null,null,null,0,0,0,0,0,0,0,0,0,0,0,0,0,0,0,0,0,0,0,0,0,0,0,0]
[null,null,null,{"$f":"'Compteur de cordée (Séance)'!E23","v":0},0,0,0,0,0,0,0,0,0,0,0,0,0,0,0,0,0,0,0,0,0,0,0,0,0,0,null,null,null,null,null,null,null,null,null,null,null,null,null,null,null,null,null,null,null,null,null,null,null,null,null,null,null,null,0,0,0,0,0,0,0,0,0,0,0,0,0,0,0,0,0,0,0,0,0,0,0,0]
[null,null,8,{"$f":"'Compteur de cordée (Séance)'!E24","v":0},0,0,0,0,0,0,0,0,0,0,0,0,0,0,0,0,0,0,0,0,0,0,0,0,0,0,{"$f":"SUM(AD24:AD26)","v":0},null,null,null,null,null,null,null,null,null,null,null,null,null,null,null,null,null,null,null,null,null,null,null,null,null,null,null,0,0,0,0,0,0,0,0,0,0,0,0,0,0,0,0,0,0,0,0,0,0,0,0]
[null,null,null,{"$f":"'Compteur de cordée (Séance)'!E25","v":0},0,0,0,0,0,0,0,0,0,0,0,0,0,0,0,0,0,0,0,0,0,0,0,0,0,0,null,null,null,null,null,null,null,null,null,null,null,null,null,null,null,null,null,null,null,null,null,null,null,null,null,null,null,null,0,0,0,0,0,0,0,0,0,0,0,0,0,0,0,0,0,0,0,0,0,0,0,0]
[null,null,null,{"$f":"'Compteur de cordée (Séance)'!E26","v":0},0,0,0,0,0,0,0,0,0,0,0,0,0,0,0,0,0,0,0,0,0,0,0,0,0,0,null,null,null,null,null,null,null,null,null,null,null,null,null,null,null,null,null,null,null,null,null,null,null,null,null,null,null,null,0,0,0,0,0,0,0,0,0,0,0,0,0,0,0,0,0,0,0,0,0,0,0,0]
[null,null,"Cordée de 4 n°1",{"$f":"'Compteur de cordée (Séance)'!E27","v":0},0,0,0,0,0,0,0,0,0,0,0,0,0,0,0,0,0,0,0,0,0,0,0,0,0,0,{"$f":"SUM(AD27:AD30)","v":0},null,null,null,null,null,null,null,null,null,null,null,null,null,null,null,null,null,null,null,null,null,null,null,null,null,null,null,0,0,0,0,0,0,0,0,0,0,0,0,0,0,0,0,0,0,0,0,0,0,0,0]
[null,null,null,{"$f":"'Compteur de cordée (Séance)'!E28","v":0},0,0,0,0,0,0,0,0,0,0,0,0,0,0,0,0,0,0,0,0,0,0,0,0,0,0,null,null,null,null,null,null,null,null,null,null,null,null,null,null,null,null,null,null,null,null,null,null,null,null,null,null,null,null,0,0,0,0,0,0,0,0,0,0,0,0,0,0,0,0,0,0,0,0,0,0,0,0]
[null,null,null,{"$f":"'Compteur de cordée (Séance)'!E29","v":0},0,0,0,0,0,0,0,0,0,0,0,0,0,0,0,0,0,0,0,0,0,0,0,0,0,0,null,null,null,null,null,null,null,null,null,null,null,null,null,null,null,null,null,null,null,null,null,null,null,null,null,null,null,null,0,0,0,0,0,0,0,0,0,0,0,0,0,0,0,0,0,0,0,0,0,0,0,0]
[null,null,null,{"$f":"'Compteur de cordée (Séance)'!E30","v":0},0,0,0,0,0,0,0,0,0,0,0,0,0,0,0,0,0,0,0,0,0,0,0,0,0,0,null,null,null,null,null,null,null,null,null,null,null,null,null,null,null,null,null,null,null,null,null,null,null,null,null,null,null,null,0,0,0,0,0,0,0,0,0,0,0,0,0,0,0,0,0,0,0,0,0,0,0,0]
[null,null,"Cordée de 4 n°2",{"$f":"'Compteur de cordée (Séance)'!E31","v":0},0,0,0,0,0,0,0,0,0,0,0,0,0,0,0,0,0,0,0,0,0,0,0,0,0,0,{"$f":"SUM(AD31:AD34)","v":0},null,null,null,null,null,null,null,null,null,null,null,null,null,null,null,null,null,null,null,null,null,null,null,null,null,null,null,0,0,0,0,0,0,0,0,0,0,0,0,0,0,0,0,0,0,0,0,0,0,0,0]
[null,null,null,{"$f":"'Compteur de cordée (Séance)'!E32","v":0},0,0,0,0,0,0,0,0,0,0,0,0,0,0,0,0,0,0,0,0,0,0,0,0,0,0,null,null,null,null,null,null,null,null,null,null,null,null,null,null,null,null,null,null,null,null,null,null,null,null,null,null,null,null,0,0,0,0,0,0,0,0,0,0,0,0,0,0,0,0,0,0,0,0,0,0,0,0]
[null,null,null,{"$f":"'Compteur de cordée (Séance)'!E33","v":0},0,0,0,0,0,0,0,0,0,0,0,0,0,0,0,0,0,0,0,0,0,0,0,0,0,0,null,null,null,null,null,null,null,null,null,null,null,null,null,null,null,null,null,null,null,null,null,null,null,null,null,null,null,null,0,0,0,0,0,0,0,0,0,0,0,0,0,0,0,0,0,0,0,0,0,0,0,0]
[null,null,null,{"$f":"'Compteur de cordée (Séance)'!E34","v":0},0,0,0,0,0,0,0,0,0,0,0,0,0,0,0,0,0,0,0,0,0,0,0,0,0,0,null,null,null,null,null,null,null,null,null,null,null,null,null,null,null,null,null,null,null,null,null,null,null,null,null,null,null,null,0,0,0,0,0,0,0,0,0,0,0,0,0,0,0,0,0,0,0,0,0,0,0,0]